bitfinex-derivatives/quotes_ETHF0:USTF0_20240910
["timestamp","ask_amount","ask_price","bid_price","bid_amount"]
[1726003114330,0.42012,2380.2,2380.1,41.2017]
[1726003120934,2.31478,2380.4,2380.1,41.2017]
[1726003121233,2.31478,2380.4,2380.2,0.78419]
[1726003121924,1.93008,2380.4,2380.3,0.3821]
[1726003122929,0.42009,2380.3,2380.2,0.3641]
[1726003123929,1.93008,2380.4,2380.2,0.78421]
[1726003128639,0.42009,2380.3,2380.2,0.78421]
[1726003130250,0.42009,2380.3,2380.2,0.3641]
[1726003131137,4.2,2380.8,2380.2,11.06453932]
[1726003131334,4.62001,2380.8,2380.6,0.42003]
[1726003131540,4.52201,2380.8,2380.7,1.1658]
[1726003131735,0.42001,2380.8,2380.7,1.1658]
[1726003132046,0.7881,2380.9,2380.7,1.1658]
[1726003132246,0.42,2380.8,2380.7,1.1658]
[1726003136939,1.93,2380.8,2380.7,0.7872]
[1726003139835,2.2955,2380.8,2380.7,0.7872]
[1726003142450,3.34551,2380.8,2380.7,0.7872]
[1726003142647,3.34551,2380.8,2380.4,0.3661]
[1726003142648,1.05006,2380.7,2380.4,0.3661]
[1726003142852,0.42005,2380.6,2380.5,0.4987926]
[1726003143050,0.79255,2380.6,2380.4,0.78616]
[1726003143251,0.79255,2380.6,2380.5,0.4987726]
[1726003144747,0.42005,2380.5,2380.4,0.3661]
[1726003144948,0.42005,2380.5,2380.4,0.86489953]
[1726003146849,0.42005,2380.5,2380.4,0.3661]
[1726003147045,0.42005,2380.5,2380.4,0.86490124]
[1726003147453,0.42005,2380.5,2380.4,0.3661]
[1726003147654,1.93005,2380.5,2380.4,0.4988007]
[1726003147955,0.42008,2380.4,2380.2,2.06804457]
[1726003148252,0.42008,2380.4,2380.3,0.49881053]
[1726003149355,0.42008,2380.4,2380.3,0.88381053]
[1726003149553,0.42008,2380.4,2380.3,1.30390053]
[1726003150861,0.42008,2380.4,2380.3,0.88381053]
[1726003151161,0.42008,2380.4,2380.3,0.49881053]
[1726003151361,0.79798,2380.4,2380.3,0.49881053]
[1726003152859,0.42004,2380.6,2380.3,10.69961053]
[1726003153160,1.05002,2380.8,2380.5,0.42004]
[1726003153551,0.42002,2380.7,2380.5,0.42004]
[1726003153758,0.42004,2380.6,2380.5,0.42004]
[1726003153954,0.42004,2380.6,2380.5,0.91883116]
[1726003154154,0.42004,2380.6,2380.5,5.11963116]
[1726003154353,1.05002,2380.8,2380.5,5.11963116]
[1726003154557,1.05002,2380.8,2380.5,0.42004]
[1726003155060,0.42004,2380.6,2380.5,0.42004]
[1726003155261,0.42004,2380.6,2380.5,0.91881415]
[1726003155452,0.42004,2380.6,2380.5,5.11961415]
[1726003156051,0.42003,2380.7,2380.5,5.11961415]
[1726003156260,0.42003,2380.7,2380.5,0.42004]
[1726003156464,0.42004,2380.6,2380.5,0.42004]
[1726003156759,0.42004,2380.6,2380.5,0.9188137]
[1726003156962,0.42004,2380.6,2380.5,6.21927894]
[1726003157362,0.42004,2380.6,2380.5,5.1196137]
[1726003157554,0.42003,2380.7,2380.5,6.21927894]
[1726003157750,0.42003,2380.7,2380.6,0.4987737]
[1726003160366,0.42003,2380.7,2380.5,1.51970524]
[1726003160561,0.42003,2380.7,2380.6,0.49878645]
[1726003163370,0.81463,2380.7,2380.6,0.49878645]
[1726003164868,0.81463,2380.7,2380.6,1.59845169]
[1726003165572,0.81463,2380.7,2380.6,1.09966524]
[1726003165871,0.81463,2380.7,2380.6,1.59843435]
[1726003167270,6.06548,2380.7,2380.6,0.49876911]
[1726003167467,6.06548,2380.7,2380.4,2.42085457]
[1726003167468,0.42005,2380.5,2380.4,2.42085457]
[1726003167777,0.42005,2380.5,2380.4,2.54720614]
[1726003168166,0.42005,2380.5,2380.4,3.64850257]
[1726003169168,0.42005,2380.5,2380.4,3.64850885]
[1726003169569,0.42005,2380.5,2380.4,3.64858139]
[1726003171070,0.42005,2380.5,2380.4,3.1497732]
[1726003171266,0.42005,2380.5,2380.4,3.64858743]
[1726003171773,0.42005,2380.5,2380.4,2.37301066]
[1726003174578,0.42005,2380.5,2380.4,1.87419643]
[1726003174579,2.06045893,2380.5,2380.4,1.87419643]
[1726003174771,2.06045893,2380.5,2380.4,2.37303555]
[1726003175075,2.06045893,2380.5,2380.4,1.87419643]
[1726003175284,2.06045893,2380.5,2380.4,2.37303631]
[1726003176069,0.42005,2380.5,2380.4,2.37303631]
[1726003176366,2.06045893,2380.5,2380.4,2.37303631]
[1726003177872,0.42005,2380.5,2380.4,3.64896802]
[1726003178075,0.42005,2380.5,2380.4,3.15012814]
[1726003178265,0.42005,2380.5,2380.4,3.64896079]
[1726003178469,2.06045893,2380.5,2380.4,3.64896079]
[1726003179684,0.42005,2380.5,2380.4,3.64900674]
[1726003180181,2.06045893,2380.5,2380.4,3.64900674]
[1726003180583,0.42005,2380.5,2380.4,3.64900674]
[1726003180783,2.06045893,2380.5,2380.4,3.64900674]
[1726003181581,2.06045893,2380.5,2380.4,3.64901008]
[1726003183088,2.06045893,2380.5,2380.4,2.54771365]
[1726003183384,2.06045893,2380.5,2380.4,3.64947655]
[1726003183586,7.31139893,2380.5,2380.4,1.60059889]
[1726003183785,2.10046,2380.3,2380.1,1.1017629]
[1726003183979,2.10046,2380.3,2380.0,1.1017629]
[1726003183980,1.47044,2380.1,2380.0,1.1017629]
[1726003184286,1.47044,2380.1,2379.9,41.9017629]
[1726003184287,0.42014,2380.0,2379.9,41.9017629]
[1726003184588,3.97488221,2380.0,2379.9,40.8]
[1726003184982,5.02524221,2380.0,2379.9,40.8]
[1726003185184,5.02524221,2380.0,2379.6,2.82705457]
[1726003185185,0.4202,2379.7,2379.6,1.1017629]
[1726003185488,0.42021,2379.6,2379.5,1.1017629]
[1726003185679,0.42021,2379.6,2379.5,41.9017629]
[1726003185680,0.81301,2379.6,2379.5,41.9017629]
[1726003186078,0.81301,2379.6,2379.5,40.8]
[1726003186285,0.81301,2379.6,2379.5,41.9017629]
[1726003186485,0.81301,2379.6,2379.5,40.8]
[1726003192388,2.91409,2379.6,2379.5,40.8]
[1726003192580,0.42028,2379.2,2379.1,1.1467]
[1726003192784,0.42028,2379.2,2379.1,0.7833]
[1726003193083,0.42028,2379.2,2379.1,41.5833]
[1726003194281,0.42028,2379.3,2379.1,41.5833]
[1726003194481,0.42028,2379.2,2379.1,41.5833]
[1726003202193,0.42028,2379.2,2378.4,1.1017629]
[1726003202194,1.05078,2379.1,2378.4,1.1017629]
[1726003202384,0.42037,2378.7,2378.6,0.7574]
[1726003202784,0.42037,2378.7,2378.6,41.5574]
[1726003203593,2.56086,2378.9,2378.6,41.97778]
[1726003203898,0.42037,2378.8,2378.6,41.97778]
[1726003204597,0.42037,2378.7,2378.6,41.97778]
[1726003205404,0.42036,2378.8,2378.6,41.97778]
[1726003205601,0.42037,2378.7,2378.6,41.5574]
[1726003207196,0.42037,2378.7,2378.6,41.1736]
[1726003213601,0.42037,2378.7,2378.6,0.3736]
[1726003214393,0.42039,2378.6,2378.5,0.3983]
[1726003214699,1.47137,2378.6,2378.5,0.3983]
[1726003215004,0.42041,2378.5,2378.4,40.8]
[1726003215499,1.93041,2378.5,2378.4,40.8]
[1726003216200,2.98144,2378.5,2378.4,40.8]
[1726003216507,1.47149,2378.4,2378.3,0.7873]
[1726003216895,1.05111,2378.3,2378.1,0.3755]
[1726003217098,0.42046,2378.2,2378.1,0.3755]
[1726003217296,1.83641,2378.3,2378.0,0.42049]
[1726003217297,2.22101,2378.3,2378.0,0.4205]
[1726003217499,0.42046,2378.2,2378.1,41.1938]
[1726003220205,0.42046,2378.2,2378.1,40.8]
[1726003220408,1.47162,2378.2,2378.1,40.8]
[1726003223309,1.05116,2378.2,2377.9,1.19881]
[1726003223504,1.05116,2378.2,2377.9,0.7783]
[1726003223505,0.4205,2378.0,2377.9,0.7783]
[1726003223903,0.4205,2378.0,2377.9,41.5783]
[1726003224307,0.4205,2378.0,2377.4,1.43439628]
[1726003224308,1.51,2378.1,2377.4,0.38290628]
[1726003224510,0.098,2378.5,2377.0,5.97495457]
[1726003224511,0.42065,2377.1,2377.0,1.51]
[1726003224705,1.51,2377.7,2377.0,4.2072]
[1726003224706,1.51,2377.3,2377.0,4.2072]
[1726003224907,1.47224,2377.2,2377.1,40.8]
[1726003225111,2.98224,2377.2,2377.1,40.8]
[1726003225709,1.93064,2377.2,2377.1,40.8]
[1726003233915,1.93064,2377.2,2377.1,41.22065]
[1726003234125,1.51,2377.2,2377.1,41.22065]
[1726003234921,1.93064,2377.2,2377.1,40.8]
[1726003235516,1.51,2377.2,2377.1,41.22065]
[1726003235824,1.93064,2377.2,2377.1,40.8]
[1726003237918,0.3788,2377.5,2377.1,40.8]
[1726003238115,1.51,2377.4,2377.1,41.22064]
[1726003238323,0.42064,2377.3,2377.1,41.22064]
[1726003239018,0.42064,2377.2,2377.1,41.22064]
[1726003240324,0.42063,2377.3,2377.1,41.22064]
[1726003241119,0.42064,2377.2,2377.1,41.22064]
[1726003241319,1.51,2377.4,2377.1,41.22064]
[1726003241522,0.42064,2377.2,2377.1,41.22064]
[1726003241820,0.42065,2377.1,2377.0,0.3831]
[1726003242127,0.80845,2377.1,2377.0,0.3831]
[1726003242313,0.80845,2377.1,2377.0,41.1831]
[1726003249127,1.93065,2377.2,2377.1,0.42065]
[1726003249827,1.93065,2377.2,2377.1,41.22065]
[1726003253033,1.51,2377.2,2377.1,41.22065]
[1726003253329,1.93064,2377.2,2377.1,41.22065]
[1726003253827,1.51,2377.2,2377.1,41.22065]
[1726003254028,1.93064,2377.2,2377.1,41.22065]
[1726003254416,1.51,2377.2,2377.1,41.22065]
[1726003255838,1.93064,2377.2,2377.1,41.22065]
[1726003256030,2.32424,2377.2,2377.1,40.8]
[1726003256331,2.32424,2377.2,2377.1,41.22065]
[1726003264035,0.42063,2377.3,2377.2,0.42063]
[1726003264230,1.93063,2377.3,2377.2,0.42063]
[1726003264537,1.93063,2377.3,2377.2,0.81213]
[1726003265038,0.3871,2377.4,2377.2,0.81213]
[1726003265039,0.80771,2377.4,2377.2,0.81213]
[1726003265228,0.0285116,2377.5,2377.3,5.7164]
[1726003265431,0.098,2377.9,2377.8,0.42053]
[1726003265635,0.21,2378.5,2377.9,1.51]
[1726003265835,1.48808146,2378.7,2378.4,0.42041]
[1726003266135,1.09008146,2378.8,2378.7,0.42037]
[1726003266329,1.63512219,2379.0,2378.3,2.60935174]
[1726003266330,1.09008146,2379.0,2378.6,1.09935174]
[1726003266530,0.21207376,2379.1,2378.5,1.09935174]
[1726003266725,1.51,2378.9,2378.5,1.51974174]
[1726003266926,1.51,2378.9,2378.6,0.42038]
[1726003267130,1.51,2378.9,2378.7,0.42037]
[1726003267727,1.8869,2379.1,2378.7,0.42037]
[1726003267930,1.8869,2379.1,2378.6,0.42038]
[1726003267931,2.30721,2379.1,2378.6,0.42038]
[1726003268126,0.79721,2379.1,2378.5,1.09935174]
[1726003268329,0.79721,2379.1,2378.6,0.42038]
[1726003268532,0.79721,2379.1,2378.7,0.42037]
[1726003268932,0.79721,2379.1,2378.6,0.81758]
[1726003269138,0.79721,2379.1,2378.7,0.42037]
[1726003269341,0.3769,2379.1,2378.7,0.42037]
[1726003269941,0.79721,2379.1,2378.7,0.42037]
[1726003272044,0.42032,2379.0,2378.7,0.42037]
[1726003273746,0.42036,2378.8,2378.5,0.4204]
[1726003274344,0.79084,2378.9,2378.6,0.42038]
[1726003277247,0.42035,2378.8,2378.6,0.42038]
[1726003277848,0.42035,2378.8,2378.4,0.3696]
[1726003277849,0.42036,2378.8,2378.4,0.3696]
[1726003279043,0.42036,2378.8,2378.6,0.42038]
[1726003280048,0.42036,2378.8,2378.2,4.33114]
[1726003280049,0.42044,2378.4,2378.2,0.42045]
[1726003280363,0.79575,2378.3,2378.1,0.42047]
[1726003281852,0.79575,2378.3,2378.2,0.42046]
[1726003282650,0.3753,2378.3,2378.2,0.42046]
[1726003286748,0.78481,2378.5,2378.3,0.42043]
[1726003287558,0.42042,2378.4,2378.3,0.42043]
[1726003289553,0.81109,2378.7,2378.5,0.4204]
[1726003289757,0.42039,2378.7,2378.5,0.4204]
[1726003290054,5.94147,2378.9,2378.5,0.4204]
[1726003290055,6.30497,2378.9,2378.5,0.4204]
[1726003290553,6.30497,2378.9,2378.4,1.9026]
[1726003290755,2.20297,2378.9,2378.4,1.9026]
[1726003291255,0.42039,2378.6,2378.4,2.32302]
[1726003291859,0.42039,2378.6,2378.5,0.42041]
[1726003292261,1.05095,2378.7,2378.4,0.81302]
[1726003293657,1.05095,2378.7,2378.4,0.42042]
[1726003294059,0.42039,2378.6,2378.4,0.42042]
[1726003294362,0.42041,2378.5,2378.4,0.42042]
[1726003295063,0.4204,2378.6,2378.4,0.42041]
[1726003295857,1.05089,2378.8,2378.5,0.42041]
[1726003296056,0.4204,2378.6,2378.4,0.42042]
[1726003297351,0.4204,2378.6,2378.3,1.51]
[1726003297352,0.42041,2378.5,2378.3,1.93043]
[1726003297559,0.42041,2378.5,2378.4,0.42042]
[1726003297952,0.42041,2378.5,2378.4,4.2048]
[1726003298256,0.42041,2378.5,2378.4,4.62522]
[1726003298660,0.42041,2378.5,2378.4,4.2048]
[1726003299362,1.05103,2378.5,2377.9,0.098]
[1726003299570,0.42045,2378.3,2378.1,0.42046]
[1726003299864,1.05101,2378.6,2377.9,4.9688]
[1726003300064,0.42044,2378.3,2378.2,1.51]
[1726003300458,0.42044,2378.4,2378.2,1.93046]
[1726003300864,0.42043,2378.4,2378.2,1.93046]
[1726003301362,1.05107,2378.4,2377.9,0.7991]
[1726003301662,0.42048,2378.1,2377.9,0.7991]
[1726003302066,0.42047,2378.2,2378.0,0.4205]
[1726003302268,0.365,2378.1,2378.0,0.4205]
[1726003302461,0.7353,2378.1,2378.0,0.4205]
[1726003307960,0.7353,2378.1,2377.9,1.09935174]
[1726003307961,1.1012,2378.1,2377.9,1.09935174]
[1726003308175,1.1012,2378.1,2377.8,45.17935174]
[1726003308379,1.1012,2378.1,2377.9,0.53594447]
[1726003308572,1.1012,2378.1,2377.9,1.09935174]
[1726003308780,1.1012,2378.1,2378.0,0.4205]
[1726003309367,1.1012,2378.1,2378.0,0.95645102]
[1726003309574,1.1012,2378.1,2378.0,2.05580276]
[1726003309976,1.1012,2378.1,2378.0,2.05580181]
[1726003310573,1.1012,2378.1,2378.0,3.89740718]
[1726003310874,1.1012,2378.1,2378.0,2.24837956]
[1726003311293,1.1012,2378.1,2378.0,3.10590726]
[1726003311784,1.1012,2378.1,2378.0,4.75493488]
[1726003312782,0.3911,2378.4,2378.2,0.42046]
[1726003312977,1.1554,2378.4,2378.3,1.63705402]
[1726003313178,1.1554,2378.4,2378.3,3.78626354]
[1726003313483,0.7643,2378.4,2378.3,2.37898523]
[1726003313677,0.7643,2378.4,2378.3,4.75466609]
[1726003313984,1.1915,2378.7,2378.5,0.42041]
[1726003314187,1.1915,2378.7,2378.6,0.5359008]
[1726003314682,1.63512219,2379.0,2378.7,0.42037]
[1726003314880,0.8006,2378.9,2378.8,0.53584523]
[1726003316185,0.8006,2378.9,2378.8,0.95619523]
[1726003316485,0.8006,2378.9,2378.8,2.05716052]
[1726003316684,0.8006,2378.9,2378.8,1.52131529]
[1726003316888,0.8006,2378.9,2378.8,2.05713059]
[1726003317077,0.8006,2378.9,2378.8,2.91442196]
[1726003317273,0.8006,2378.9,2378.8,2.05713059]
[1726003317876,5.42494,2378.9,2378.8,0.5358153]
[1726003318085,0.42037,2378.7,2378.6,1.10096529]
[1726003318281,0.42037,2378.8,2378.6,0.53585376]
[1726003318483,0.42037,2378.8,2378.5,1.10096529]
[1726003318787,0.42037,2378.8,2378.6,0.53586279]
[1726003318987,0.42037,2378.8,2378.7,0.53586392]
[1726003319985,0.42037,2378.8,2378.5,1.52137529]
[1726003320192,0.42037,2378.8,2378.6,0.53585409]
[1726003320391,0.42037,2378.8,2378.7,0.53585409]
[1726003322294,0.42037,2378.8,2378.5,1.52135529]
[1726003322584,0.42037,2378.8,2378.7,0.53586524]
[1726003324787,0.42039,2378.6,2378.5,1.10096529]
[1726003324991,0.42041,2378.5,2378.4,1.10096529]
[1726003325195,5.37031,2378.5,2378.4,0.5359082]
[1726003325796,5.37031,2378.5,2378.4,0.53591399]
[1726003326786,11.37031,2378.5,2378.4,0.53591399]
[1726003327087,1.16631,2378.5,2378.4,0.53591399]
[1726003328195,1.56141,2378.5,2378.4,0.53591399]
[1726003328996,1.56141,2378.5,2378.2,1.10096529]
[1726003329186,1.56141,2378.5,2378.3,0.52991522]
[1726003329382,1.56141,2378.5,2378.4,0.52991522]
[1726003329788,5.76621,2378.5,2378.4,0.52991522]
[1726003330388,1.56141,2378.5,2378.4,0.52991522]
[1726003331893,1.56141,2378.5,2378.2,1.52142529]
[1726003332090,1.56141,2378.5,2378.3,0.5299165]
[1726003332295,1.56141,2378.5,2378.4,0.5299165]
[1726003332795,1.56141,2378.5,2378.4,0.52990969]
[1726003336495,1.56141,2378.5,2378.4,0.52991571]
[1726003337294,1.56141,2378.5,2378.4,0.52991285]
[1726003338894,1.16631,2378.5,2378.4,0.52991285]
[1726003343301,1.16631,2378.5,2378.4,0.52991924]
[1726003343702,1.16631,2378.5,2378.4,0.52991299]
[1726003346799,0.42042,2378.4,2378.3,1.10096529]
[1726003347195,0.42042,2378.4,2378.3,1.63087682]
[1726003348210,0.42042,2378.4,2378.3,0.52991153]
[1726003354609,0.42042,2378.4,2378.3,1.63147577]
[1726003357404,0.42042,2378.4,2378.3,1.10156424]
[1726003357713,0.42042,2378.4,2378.3,1.63147813]
[1726003358111,0.42042,2378.4,2378.3,2.47935058]
[1726003358312,0.42042,2378.4,2378.3,1.63147813]
[1726003358507,0.42042,2378.4,2378.3,2.47933941]
[1726003359012,0.42042,2378.4,2378.3,1.63147813]
[1726003360113,0.42042,2378.4,2378.3,2.479331]
[1726003360315,0.42042,2378.4,2378.3,1.63147813]
[1726003360810,0.42042,2378.4,2378.3,1.10156424]
[1726003361008,0.42042,2378.4,2378.3,1.63147712]
[1726003361401,0.42042,2378.4,2378.3,2.47933617]
[1726003362014,0.42042,2378.4,2378.3,1.63147712]
[1726003362212,0.42042,2378.4,2378.3,2.47934456]
[1726003363519,0.42042,2378.4,2378.3,2.67146354]
[1726003363811,0.42042,2378.4,2378.3,3.77408587]
[1726003364015,0.42042,2378.4,2378.3,3.77409937]
[1726003364617,0.42042,2378.4,2378.3,2.67148036]
[1726003367210,2.05458699,2378.4,2378.3,2.67148036]
[1726003367407,2.05458699,2378.4,2378.3,1.29370004]
[1726003367719,2.05458699,2378.4,2378.3,2.67149306]
[1726003368118,2.05458699,2378.4,2378.3,4.32383942]
[1726003369614,2.05458699,2378.4,2378.3,4.32478571]
[1726003370208,2.05458699,2378.4,2378.3,2.67243935]
[1726003370409,0.42042,2378.4,2378.3,4.32845442]
[1726003370617,2.05877779,2378.4,2378.3,2.67243935]
[1726003373420,0.42042,2378.4,2378.3,2.67243935]
[1726003373820,2.05873514,2378.4,2378.3,2.67243935]
[1726003374022,0.42042,2378.4,2378.3,2.67243935]
[1726003374226,0.42042,2378.4,2378.3,2.67243933]
[1726003374621,0.42042,2378.4,2378.3,2.67312869]
[1726003375323,0.42042,2378.4,2378.3,2.67313094]
[1726003376019,0.42042,2378.4,2378.3,4.32919761]
[1726003377016,2.05875603,2378.4,2378.3,2.67313094]
[1726003377212,0.42042,2378.4,2378.3,4.32917679]
[1726003377826,0.42042,2378.4,2378.3,4.32918579]
[1726003378024,2.0587706,2378.4,2378.3,2.67313994]
[1726003378723,2.0587706,2378.4,2378.3,4.32919451]
[1726003378724,0.42042,2378.4,2378.3,4.32919451]
[1726003379425,0.42042,2378.4,2378.3,4.32918435]
[1726003379816,0.42042,2378.4,2378.3,4.32918116]
[1726003380221,2.05880072,2378.4,2378.3,2.67313675]
[1726003380622,0.42042,2378.4,2378.3,4.32917021]
[1726003382129,2.05880973,2378.4,2378.3,2.67313675]
[1726003382726,0.42042,2378.4,2378.3,2.67313675]
[1726003383032,0.42042,2378.4,2378.3,4.32915879]
[1726003383527,2.05880802,2378.4,2378.3,2.67312609]
[1726003383735,0.42042,2378.4,2378.3,2.67312609]
[1726003384029,2.05878918,2378.4,2378.3,2.67312609]
[1726003384721,2.05878588,2378.4,2378.3,2.67312609]
[1726003387128,6.72736,2378.4,2378.3,4.32908202]
[1726003387335,6.72736,2378.4,2378.3,2.48188443]
[1726003387336,8.23736,2378.4,2378.3,2.48188443]
[1726003387827,1.63704661,2378.6,2378.5,1.47144]
[1726003388030,1.63704661,2378.8,2378.5,8.2835128]
[1726003388226,1.63704661,2378.9,2378.8,0.42035]
[1726003388431,1.63704661,2379.0,2378.8,4.32614321]
[1726003388628,2.05736661,2379.0,2378.9,2.8562351]
[1726003389524,2.05736661,2379.0,2378.9,2.85611167]
[1726003390122,0.42032,2379.0,2378.9,0.9055127]
[1726003390328,0.42032,2379.0,2378.9,0.3756]
[1726003390522,1.63704661,2379.1,2378.9,0.905406]
[1726003390724,2.05734661,2379.1,2379.0,0.529806]
[1726003392331,0.4203,2379.1,2379.0,0.529806]
[1726003392529,0.4203,2379.1,2378.9,0.3756]
[1726003392732,1.089266,2379.0,2378.9,0.3756]
[1726003392939,1.089266,2379.0,2378.9,0.90539792]
[1726003393134,1.509566,2379.1,2378.9,0.90539792]
[1726003393333,1.509566,2379.1,2378.9,0.3756]
[1726003394136,0.42032,2379.0,2378.9,0.3756]
[1726003394332,0.42032,2379.0,2378.9,0.90540088]
[1726003394732,1.089266,2379.1,2378.9,1.32573088]
[1726003394931,1.089266,2379.1,2378.9,0.79593]
[1726003395233,1.089266,2379.2,2379.0,0.42032]
[1726003395431,1.089266,2379.2,2378.9,2.30592]
[1726003396139,1.089266,2379.2,2379.0,0.42031]
[1726003396632,1.089266,2379.2,2379.0,41.22031]
[1726003397135,1.089266,2379.2,2379.0,40.8]
[1726003397530,1.897336,2379.3,2379.0,41.22031]
[1726003397725,1.897336,2379.3,2379.0,40.8]
[1726003397932,1.089266,2379.2,2379.0,40.8]
[1726003398234,2.44511661,2379.3,2379.0,40.8]
[1726003398235,1.897336,2379.3,2379.0,40.8]
[1726003398532,1.477066,2379.3,2379.0,41.22031]
[1726003398737,1.897336,2379.3,2379.0,41.22031]
[1726003399141,0.80807,2379.3,2379.0,41.22031]
[1726003399530,1.897336,2379.3,2379.0,40.8]
[1726003400029,0.80807,2379.3,2379.0,40.8]
[1726003400632,0.80807,2379.3,2379.0,41.22032]
[1726003400833,0.80807,2379.3,2379.0,40.8]
[1726003402032,0.42029,2379.2,2379.0,40.8]
[1726003402338,0.80808,2379.3,2379.0,40.8]
[1726003402537,0.80808,2379.3,2379.0,41.22032]
[1726003402942,0.42028,2379.2,2379.0,40.8]
[1726003403135,0.42029,2379.2,2379.0,40.8]
[1726003403640,0.80808,2379.3,2379.0,40.8]
[1726003403834,0.80808,2379.3,2379.0,41.22031]
[1726003404141,0.42029,2379.2,2379.0,40.8]
[1726003405440,0.80808,2379.3,2379.0,40.8]
[1726003405832,0.42028,2379.2,2379.0,40.8]
[1726003410347,0.42028,2379.2,2379.0,42.31]
[1726003410644,0.3878,2379.3,2379.0,42.31]
[1726003411053,0.42029,2379.2,2379.0,42.31]
[1726003412238,0.80808,2379.3,2379.0,42.73032]
[1726003412445,0.42029,2379.2,2379.0,42.31]
[1726003422049,0.80808,2379.3,2379.0,42.73032]
[1726003422649,0.42028,2379.2,2379.0,42.31]
[1726003425256,1.897346,2379.3,2379.0,42.73032]
[1726003426455,0.42028,2379.2,2379.0,42.73032]
[1726003427554,0.4203,2379.1,2379.0,42.31]
[1726003427754,0.4203,2379.1,2379.0,40.8]
[1726003428154,0.4203,2379.1,2379.0,0.52977125]
[1726003428454,0.4203,2379.1,2378.9,2.98846199]
[1726003428455,0.4203,2379.1,2378.9,1.8856]
[1726003428660,0.4203,2379.1,2378.9,43.10594]
[1726003429158,0.4203,2379.1,2379.0,0.52977516]
[1726003431257,1.509566,2379.1,2379.0,0.52977516]
[1726003432055,0.4203,2379.1,2379.0,0.52977516]
[1726003432357,1.509566,2379.1,2379.0,2.48027415]
[1726003433152,2.05734661,2379.1,2379.0,4.31876833]
[1726003433357,2.05734661,2379.1,2379.0,2.66441039]
[1726003433762,0.4203,2379.1,2379.0,4.31876833]
[1726003434665,2.05734661,2379.1,2379.0,4.31876833]
[1726003434866,0.4203,2379.1,2379.0,4.31876833]
[1726003435064,1.51024386,2379.1,2379.0,4.31876833]
[1726003435366,0.4203,2379.1,2379.0,4.31876833]
[1726003436058,1.08988364,2379.1,2379.0,4.73907833]
[1726003436666,1.08988364,2379.1,2379.0,4.31876833]
[1726003438264,2.05733661,2379.2,2379.0,4.31876833]
[1726003438461,2.05733661,2379.2,2379.1,3.76759605]
[1726003438661,2.05733661,2379.2,2379.1,2.39330447]
[1726003438867,2.05733661,2379.2,2379.1,44.04091852]
[1726003439068,2.05733661,2379.2,2379.1,44.5706773]
[1726003439866,2.05733661,2379.2,2379.1,46.0806773]
[1726003440262,0.42029,2379.2,2379.1,44.97749164]
[1726003441068,0.42029,2379.2,2379.1,2.55987939]
[1726003441271,11.7132,2379.2,2378.5,0.13808551]
[1726003441463,11.7132,2379.2,2378.4,1.10389855]
[1726003441464,2.52247,2378.5,2378.4,1.10389855]
[1726003441767,1.47168,2378.1,2378.0,1.10389855]
[1726003441965,0.4205,2378.0,2377.9,41.90238268]
[1726003442366,0.42051,2377.9,2377.8,2.61238268]
[1726003442564,1.50734668,2377.9,2377.8,1.51]
[1726003442868,0.42051,2377.9,2377.8,42.31]
[1726003450775,0.42051,2377.9,2377.8,40.8]
[1726003466677,1.4718,2377.9,2377.8,40.8]
[1726003469187,0.42053,2377.8,2377.7,0.3946]
[1726003469492,2.52319,2377.8,2377.7,0.3946]
[1726003480201,6.72879,2377.8,2377.7,0.3946]
[1726003482701,5.67746,2377.8,2377.7,0.3946]
[1726003484095,6.76429668,2377.8,2377.7,0.3946]
[1726003485190,7.30779184,2377.8,2377.7,0.3946]
[1726003487500,3.10219184,2377.8,2377.7,0.3946]
[1726003487703,7.30779184,2377.8,2377.7,0.3946]
[1726003488999,3.10219184,2377.8,2377.7,0.3946]
[1726003489406,3.28609801,2377.8,2377.7,0.3946]
[1726003489706,7.49169801,2377.8,2377.7,0.3946]
[1726003489905,3.28609801,2377.8,2377.7,0.3946]
[1726003490095,7.49169801,2377.8,2377.7,0.3946]
[1726003490699,5.86136617,2377.8,2377.7,0.3946]
[1726003490906,8.0372002,2377.8,2377.7,0.3946]
[1726003491106,5.86136617,2377.8,2377.7,0.3946]
[1726003492600,7.4927298,2377.8,2377.7,0.3946]
[1726003493004,3.2871298,2377.8,2377.7,0.3946]
[1726003500809,0.42057,2377.6,2377.5,42.26768268]
[1726003501009,2.05193363,2377.6,2377.5,41.5688]
[1726003501314,2.2358398,2377.6,2377.5,41.5688]
[1726003501715,0.60447617,2377.6,2377.5,41.5688]
[1726003502103,1.69114072,2377.6,2377.5,41.5688]
[1726003502707,1.69114072,2377.6,2377.5,42.67118268]
[1726003504013,1.69114072,2377.6,2377.5,1.87118268]
[1726003504814,0.60447617,2377.6,2377.5,1.87118268]
[1726003505016,2.2358398,2377.6,2377.5,0.7688]
[1726003507813,0.60447617,2377.6,2377.5,1.87118268]
[1726003508215,2.2358398,2377.6,2377.5,1.87118268]
[1726003508416,2.2358398,2377.6,2377.5,0.7688]
[1726003508809,2.2358398,2377.6,2377.5,1.87118268]
[1726003509916,2.2358398,2377.6,2377.5,0.7688]
[1726003510313,3.2872598,2377.6,2377.5,1.87118268]
[1726003510622,3.2872598,2377.6,2377.5,0.7688]
[1726003511422,3.2872598,2377.6,2377.5,1.87118268]
[1726003512917,3.2872598,2377.6,2377.5,0.7688]
[1726003513221,3.2872598,2377.6,2377.5,1.87118268]
[1726003514719,1.65589617,2377.6,2377.5,1.87118268]
[1726003515025,3.28644213,2377.6,2377.5,1.87118268]
[1726003516428,2.23502213,2377.6,2377.5,3.1485653]
[1726003518225,2.23502213,2377.6,2377.5,4.1213956]
[1726003518621,6.91371617,2377.6,2377.5,0.4035]
[1726003518826,8.4244302,2377.6,2377.5,0.4035]
[1726003523925,10.9858502,2377.6,2377.5,0.4035]
[1726003524124,1.05151,2377.4,2377.1,1.10378849]
[1726003524328,3.10096974,2377.2,2377.1,0.7515]